Cogmind - Beta 14 @@@ ROGUE MODE // 2024.09.07 @ 02:21:17 Player: Zaros426 Result: Destroyed by G-50 Soldier with Heavy Laser Performance ------------- Evolutions (5) 2500 Regions Visited (18) 3600 Robots Destroyed (353) 1765 Value Destroyed (15800) 15800 Prototype IDs (59) 1180 Alien Tech Used (0) 0 Bonus (8276) 8276 TOTAL SCORE: 33121 Bonus ------- High Alert Combat Kills 4546 Follower Combat Kills 1090 Entered Garrisons 800 Used RIF Installer 2000 Aligned with FarCom 300 Friendly Fire -460 Cogmind --------- Core Integrity 0/1000 Matter 5/300 Energy 143/150 System Corruption 18% Temperature Cool (17) Movement Treading (160) Location -5/Factory Parts ------- > --- POWER (2) -------- Light Angular Momentum Engine > --- PROPULSION (4) --- Advanced Heavy Siege Treads Flexi-carbon Leg > --- UTILITY (6) ------ Advanced Heat Sink Large Storage Unit Improved Medium Armor Plating > --- WEAPON (5) ------- (None) > --- INVENTORY (15) --- Carbon-fiber Leg Carbon-fiber Leg Enhanced Optical Array Advanced Signal Interpreter Experimental Terrain Scanner Improved Kinecellerator Advanced Weapon Cycler Improved Field Recycling Unit (0) Phase Cannon Heavy Plasma Cannon Heavy Plasma Cannon Improved Remote Datajack Spear Peak State ------------ > --- POWER ------------ Particle Reactor > --- PROPULSION ------- Improved Medium Treads Improved Medium Treads Improved Heavy Treads > --- UTILITY ---------- Huge Storage Unit 8R-AWN's Armor/EX > --- WEAPON ----------- XL Autogun Array > --- INVENTORY -------- Cooled Ion Engine Improved Deuterium Engine Hybrid Deuterium Engine Reinforced Fission Core Armored Treads Medium Treads Medium Treads Improved Medium Treads Advanced Cryofiber Web Experimental Sensor Array Advanced Weapon Cycler Transmission Jammer Improved Medium Armor Plating Improved Medium Armor Plating Dynamic Insulation System High-powered Tractor Beam Latent Energy Streamer AWS/Gauss 8R-AWN's Boregun Remote Datajack Impact Mace [Rating: 111] Favorites ----------- Power Cooled Ion Engine Engine Cooled Ion Engine Power Core Reinforced Fission Core Reactor Particle Reactor Propulsion Light Treads Treads Light Treads Leg Carbon-fiber Leg Wheel Compact Wheel Hover Unit Antigrav System Utility Huge Storage Unit Device Advanced Cryofiber Web Storage Huge Storage Unit Processor Targeting Computer Hackware Relay Coupler [NC] Protection Improved Medium Armor Plating Weapon XL Autogun Subcomponent Energy Gun Heavy EM Pulse Gun Energy Cannon Particle Cannon Ballistic Gun XL Autogun Subcomponent Ballistic Cannon Assault Cannon Launcher Mini Grenade Launcher Special Weapon Remote Datajack Impact Weapon Impact Mace Special Melee Weapon Datajack Build | -11 -10 -10 -9 -9 -9 -8 -8 -7 -7 -7 -7 -6 -6 -6 -6 -5 -5 -5 ------- Run | Yrd Mat Min Mat Min Exi Min Mat Fac Gar Fac Gar Fac Gar Fac Gar Fac Was Fac Slots Evolved 10 | . . . 2 . . . 2 2 . . . 2 . . . 2 . . Power 1 | . . . . . . . . . . . . . . . . 1 . . Propulsion 2 | . . . . . . . 1 1 . . . . . . . . . . Utility 4 | . . . . . . . 1 1 . . . 1 . . . 1 . . Weapon 3 | . . . 2 . . . . . . . . 1 . . . . . . Parts Attached 446 | 7 19 8 44 6 17 3 15 23 36 14 43 28 38 43 25 76 . 1 Power 24 | 1 1 . 5 . 1 . . 1 2 . 3 . . 1 1 8 . . Engine 21 | 1 1 . 5 . 1 . . 1 . . 3 . . 1 . 8 . . Core 2 | . . . . . . . . . 1 . . . . . 1 . . . Reactor 1 | . . . . . . . . . 1 . . . . . . . . . Propulsion 90 | 2 . 7 11 . 7 1 6 6 10 1 6 2 . 8 3 19 . 1 Treads 65 | 2 . 1 11 . 6 1 5 6 10 1 6 2 . 7 1 5 . 1 Leg 11 | . . . . . 1 . . . . . . . . . . 10 . . Wheel 11 | . . 6 . . . . 1 . . . . . . 1 2 1 . . Hover 3 | . . . . . . . . . . . . . . . . 3 . . Flight . | . . . . . . . . . . . . . . . . . . . Utility 139 | 2 4 . 3 2 1 2 4 5 8 9 18 10 17 19 7 28 . . Device 79 | 1 1 . 2 1 . . 2 4 6 6 9 6 4 14 4 19 . . Storage 7 | 1 2 . 1 . 1 . . . 1 . . . . . . 1 . . Processor 5 | . 1 . . . . . 1 . . . . . 1 1 . 1 . . Hackware 23 | . . . . . . . . . . 1 3 3 6 3 3 4 . . Protection 25 | . . . . 1 . 2 1 1 1 2 6 1 6 1 . 3 . . Artifact . | . . . . . . . . . . . . . . . . . . . Weapon 193 | 2 14 1 25 4 8 . 5 11 16 4 16 16 21 15 14 21 . . Energy Gun 15 | . 2 1 11 . . . . . . . . . . . . 1 . . Energy Cannon 16 | . 2 . 2 . 1 . . . 2 . 3 1 2 . 1 2 . . Ballistic Gun 78 | 2 2 . 3 . 2 . 5 5 8 2 8 11 6 6 9 9 . . Ballistic Cannon 13 | . 1 . 6 1 2 . . . . . . . . 3 . . . . Launcher 13 | . 6 . 1 3 . . . . . . . . . . . 3 . . Special Weapon 23 | . . . . . . . . 1 1 1 3 4 6 3 . 4 . . Impact Weapon 32 | . 1 . 2 . 2 . . 4 5 1 2 . 7 3 3 2 . . Slashing Weapon . | . . . . . . . . . . . . . . . . . . . Piercing Weapon . | . . . . . . . . . . . . . . . . . . . Special Melee Weapon 3 | . . . . . 1 . . 1 . . . . . . 1 . . . Unidentified Prototypes 5 | . . . 1 1 . . 1 1 . . 1 . . . . . . . Parts Lost 86 | . . 1 7 1 2 . . . 8 . 6 1 1 10 12 34 . 3 Power 10 | . . . 2 . . . . . . . 1 . . 1 1 4 . 1 Propulsion 30 | . . 1 1 . 2 . . . 2 . 3 . . 4 5 11 . 1 Utility 20 | . . . . 1 . . . . 3 . 2 1 1 . 1 11 . . Weapon 26 | . . . 4 . . . . . 3 . . . . 5 5 8 . 1 Highest Loss Streak 34 | . . 1 2 1 2 . . . 2 . 3 1 1 4 6 34 . 3 To Critical Strikes 3 | . . . . . 2 . . . . . . . . . 1 . . . Average Slot Usage (%) 89 | . 100 99 98 99 90 87 86 98 85 68 74 90 90 93 84 78 64 51 Engine 7 | . 14 14 10 11 11 11 9 7 2 . 2 6 6 5 2 4 11 11 Treads 20 | . 28 14 21 22 21 22 21 27 23 23 22 20 20 22 10 8 . . Wheel 1 | . . 13 . . . . 2 1 . . . . . . 4 2 . . Device 10 | . 6 14 10 5 . . 5 12 15 22 13 11 9 13 15 14 5 5 Storage 8 | . 14 14 11 11 11 11 9 7 7 7 7 6 6 6 6 4 5 5 Processor 2 | . 7 . . . . . 3 7 1 . . . . 9 6 3 . . Protection 4 | . . . . 5 11 10 8 1 4 . 5 11 11 . . 3 11 11 Energy Gun 4 | . 1 27 27 . . . . . . . . . . . . . . . Energy Cannon 1 | . 9 . . . 3 . . . . . 1 . . . . 1 . . Ballistic Gun 14 | . 11 . 6 . 4 11 14 28 22 6 5 26 25 26 15 17 . . Ballistic Cannon 5 | . 3 . 8 29 9 22 13 . . . . . . 1 9 . . . Launcher 1 | . 2 . . 14 13 . . . . . . . . . . . 5 4 Impact Weapon 1 | . . . . . . . . . . . 4 1 3 1 5 1 . . Peak Build Rating 111 | 9 14 14 24 29 57 45 51 61 103 103 111 90 94 87 73 81 56 53 Average Rating 50 | 6 9 13 19 25 34 44 47 55 78 102 74 84 84 76 50 53 55 51 On Entrance 49 | . 9 13 14 24 23 44 45 44 60 103 103 64 83 87 69 40 53 56 Naked Turns . | . . . . . . . . . . . . . . . . . . . Heaviest Build 144 | 13 34 34 53 53 71 78 79 68 139 128 137 127 128 131 135 144 62 62 Greatest Support 135 | 40 40 32 43 40 46 43 63 80 135 135 135 133 133 133 96 89 65 80 Greatest Overweight (x) 8 | . . 3 3 1 3 1 4 4 1 . 1 . . 1 8 7 . 1 Average Overweight (x) 1 | . . 2 . 1 . 1 1 . . . . . . . 5 3 . . Largest Inventory Capacity 25 | 8 15 15 15 15 20 20 20 20 25 25 25 25 25 25 25 25 15 15 Average Capacity 20 | 7 14 15 15 15 16 20 20 20 23 25 25 25 25 25 25 21 15 15 Most Carried 25 | 2 15 15 15 15 20 20 20 20 25 25 25 24 25 25 22 25 11 15 Average Carried 18 | 1 10 15 14 14 16 20 19 19 22 24 23 22 24 22 18 17 10 14 Final Capacity 25 | 8 15 15 15 15 20 20 20 20 25 25 25 25 25 25 25 15 15 15 Final Carried 25 | 2 15 15 15 15 20 20 20 20 25 25 25 22 25 20 20 7 11 13 Class Distribution -------------------- 25% | Tank 24% | Scavenger-Gunner 11% | Mutant 8% | Gunner 6% | Commander-Tank 5% | Bothacker-Gunner 5% | Scavenger-Tank 4% | Scavenger-Mutant Dominant Class ---------------- Mutant | -10/Materials Mutant | -10/Mines Gunner | -9/Materials Tank | -9/Mines Tank | -9/Exiles Tank | -8/Mines Tank | -8/Materials Scavenger-Gunner | -7/Factory Scavenger-Tank | -7/Garrison Tank | -7/Factory Bothacker-Mutant | -7/Garrison Commander-Tank | -6/Factory Commander-Tank | -6/Garrison Scavenger-Gunner | -6/Factory Scavenger-Gunner | -6/Garrison Bothacker-Gunner | -5/Factory Scavenger-Mutant | -5/Waste Scavenger-Mutant | -5/Factory Resources | -11 -10 -10 -9 -9 -9 -8 -8 -7 -7 -7 -7 -6 -6 -6 -6 -5 -5 -5 ----------- Run | Yrd Mat Min Mat Min Exi Min Mat Fac Gar Fac Gar Fac Gar Fac Gar Fac Was Fac Matter Collected 13638 | 254 465 95 853 405 392 332 441 561 2226 425 1066 537 1365 1615 1179 1427 . . Remotely 1134 | . . . . . . . . . . . 351 76 . 131 335 241 . . Salvage Created 14994 | 33 657 524 2931 94 135 213 893 593 2091 424 827 105 1421 1374 848 1831 . . Parts 785 | 4 41 29 164 8 6 16 51 40 114 30 50 6 60 69 23 74 . . Haulers Intercepted 14 | . 2 . 5 . . . 4 1 . 1 . . . 1 . . . . Recyclers Shooed 6 | . 3 . 1 . . . . . . . . 1 . 1 . . . . Parts Field Recycled 4 | . . . . . . . . . . . . . . . . 4 . . Retrieved Matter 45 | . . . . . . . . . . . . . . . . 45 . . Parts Self-Destructed . | . . . . . . . . . . . . . . . . . . . Prevented . | . . . . . . . . . . . . . . . . . . . Kills | -11 -10 -10 -9 -9 -9 -8 -8 -7 -7 -7 -7 -6 -6 -6 -6 -5 -5 -5 ------- Run | Yrd Mat Min Mat Min Exi Min Mat Fac Gar Fac Gar Fac Gar Fac Gar Fac Was Fac Combat Hostiles Destroyed 304 | . 13 12 52 15 8 10 16 7 38 8 21 2 30 17 24 31 . . Melee 5 | . . . . . . . . . . . 2 . . . . 3 . . Guns 196 | . 2 7 33 . 1 7 12 7 35 8 13 2 26 17 8 18 . . Cannons 39 | . 2 . 14 4 . 3 4 . . . . . . . 12 . . . AOE 57 | . 9 4 3 11 7 . . . 3 . 5 . 4 . 1 10 . . Classes Destroyed 22 | 1 7 1 5 2 . . 1 1 1 . 2 . . . . 1 . . Worker 15 | . 1 3 4 . . . . 1 . 1 . . . 4 . 1 . . Builder 7 | . . . 4 . . . . 1 . . . . . 1 . 1 . . Tunneler 5 | 2 . 3 . . . . . . . . . . . . . . . . Hauler 14 | . 2 . 5 . . . 4 1 . 1 . . . 1 . . . . Recycler 11 | . 1 1 4 . . . 1 1 . . . . . 2 . 1 . . Mechanic 4 | . 1 . 1 . . . 1 . . . . . . . . 1 . . Operator 3 | . 1 . . . . . . . . . . . . 1 . 1 . . Watcher 13 | . 3 . 5 . . . 1 2 . 1 . . . 1 . . . . Swarmer 57 | . . 8 4 3 . 7 4 . 3 3 3 . 12 2 8 . . . Cutter 7 | . . . . . . . . . . . 3 . 4 . . . . . Saboteur 1 | . . . . . . . . . . . . . . . . 1 . . Grunt 145 | . 13 4 34 2 . 3 6 2 21 4 11 . 4 7 12 22 . . Brawler 7 | . . . 2 . . . . . 1 . . . 1 . 1 2 . . Duelist 7 | . . . 1 . . . . . . 1 . . 2 1 2 . . . Protector 2 | . . . 1 . . . . . . . 1 . . . . . . . Sentry 26 | . . . 10 . . . 5 2 4 . . 1 . 2 1 1 . . Demolisher 2 | . . . . 1 . . . . . . 1 . . . . . . . Specialist 2 | . . . . . . . . . . . 2 . . . . . . . Hunter 13 | . . . . . . . 1 1 2 . . . 5 2 . 2 . . Programmer 16 | . . . . . . . . 2 5 . . 1 2 3 . 3 . . Behemoth 2 | . . . . . . . . . 2 . . . . . . . . . Assembled 16 | . . . . 9 7 . . . . . . . . . . . . . Best Kill Streak 8 | 2 7 3 7 3 8 4 6 3 6 4 6 2 8 6 6 6 . . Combat Bots Only 8 | . 6 3 7 3 7 4 4 2 6 3 6 2 8 5 6 4 . . Max Kills in Single Turn 5 | 1 4 3 3 2 4 1 3 1 3 2 3 1 5 2 2 4 . . Gunslinging 2 | . . . 1 . . . . . 2 . . . 1 . . . . . Exploded 4 | . 4 3 2 2 4 . . . 2 . 3 . 4 . 1 4 . . Melee 1 | . . . . . . . . . . . 1 . . . . 1 . . Uniques/NPCs Destroyed 2 | . . . . . 2 . . . . . . . . . . . . . EX-HEX (-9/Exiles) 8R-AWN (-9/Exiles) Combat | -11 -10 -10 -9 -9 -9 -8 -8 -7 -7 -7 -7 -6 -6 -6 -6 -5 -5 -5 -------- Run | Yrd Mat Min Mat Min Exi Min Mat Fac Gar Fac Gar Fac Gar Fac Gar Fac Was Fac Hostile Shots Fired 1589 | . 35 46 117 41 47 17 27 45 203 10 185 5 108 120 164 401 . 18 Missed 467 | . 8 21 35 14 13 1 7 15 56 2 54 1 28 39 43 127 . 3 Damage Taken 18401 | . 402 255 1247 573 771 147 231 282 2271 56 2275 166 1474 1251 1866 4843 . 291 Core 2244 | . 63 67 73 18 61 8 19 . 228 9 249 15 97 143 192 964 . 38 Absorbed by Shields 567 | . . . 40 16 . . . . 313 61 . . . 48 89 . . . Reduced by Siege Mode 12 | . . . . . . . . . 12 . . . . . . . . . Ignored by Resistances 730 | . . . . . . . 20 . . . 336 . . . . 374 . . Regen/Repaired (Parts) 804 | . . . 39 . . . . . . . . 324 259 . . 182 . . Core Remaining (%) 63 | 100 . 48 . . . 60 96 . . . 30 . . . 47 . . . Volleys Fired 779 | 7 44 30 119 25 19 9 30 23 122 20 49 28 75 65 57 57 . . Largest 5 | 2 2 2 4 4 2 2 2 4 4 1 2 5 5 5 4 5 . . Hottest 236 | 40 136 90 236 176 60 88 88 100 100 60 90 110 140 156 189 137 . . Shots Fired 2276 | 14 88 58 440 53 22 42 105 90 418 21 55 60 233 209 164 204 . . Gun 1852 | 14 53 56 369 . 16 24 67 90 411 16 41 40 211 183 77 184 . . Cannon 294 | . 27 . 69 36 . 18 38 . 2 . 3 . 2 12 87 . . . Launcher 43 | . 8 2 2 17 6 . . . . . . . . . . 8 . . Special 87 | . . . . . . . . . 5 5 11 20 20 14 . 12 . . Kinetic 1725 | 14 56 . 105 36 16 42 105 90 411 16 41 40 211 195 163 184 . . Thermal 242 | . 24 . 218 . . . . . . . . . . . . . . . Explosive 43 | . 8 2 2 17 6 . . . . . . . . . . 8 . . Electromagnetic 179 | . . 56 115 . . . . . 2 . 3 . 2 . 1 . . . Robot Hit Streak 33 | 4 12 7 13 8 5 7 27 14 33 21 7 13 21 21 9 13 . . Robot Miss Streak 13 | 1 4 4 6 5 4 4 4 1 4 7 5 3 4 6 13 3 . . Penetration Max 2 | . . . . . . . . . . . . . . . 1 2 . . Secondary Targets 35 | . . . 5 . . . . 1 11 . . . 13 1 1 3 . . Max Gunslinging Chain 2 | . . . 1 . . . . 1 2 . . . 2 1 1 1 . . Autonomous 111 | . . . . . . 24 45 . 10 . . . . . . 32 . . Shots Hit Robots 1404 | 10 51 31 217 24 23 27 78 62 251 18 47 42 138 135 108 142 . . Core Hits 723 | 4 41 20 95 21 19 11 29 25 104 16 31 8 63 59 92 85 . . Critical Kills 12 | . . . 1 . . 1 . 1 2 . 1 . 1 1 2 2 . . Critical Parts Destroyed 17 | . 1 . . . 1 . . 1 1 . 4 . . 2 2 5 . . Critical Strikes 46 | . 1 2 12 . 1 3 2 2 3 . 5 . 1 3 4 7 . . Burn 9 | . . . 9 . . . . . . . . . . . . . . . Meltdown 1 | . . . 1 . . . . . . . . . . . . . . . Destroy 21 | . 1 . . . . 1 . 2 3 . 3 . . 3 4 4 . . Blast 6 | . . . 2 . . 2 2 . . . . . . . . . . . Corrupt 2 | . . 2 . . . . . . . . . . . . . . . . Smash 7 | . . . . . 1 . . . . . 2 . 1 . . 3 . . Melee Attacks 107 | . 2 . 2 . 7 . . 6 12 1 18 . 33 4 13 9 . . Impact 99 | . 2 . 2 . 3 . . 5 12 1 18 . 33 4 10 9 . . Slashing . | . . . . . . . . . . . . . . . . . . . Piercing . | . . . . . . . . . . . . . . . . . . . Sneak Attacks 11 | . . . . . 7 . . 2 . . . . . 1 1 . . . Combat Hostiles . | . . . . . . . . . . . . . . . . . . . Follow-up Attacks . | . . . . . . . . . . . . . . . . . . . Damage Inflicted 34482 | 79 1374 691 4413 1202 1753 774 2028 1240 5326 682 1968 623 3066 2672 2273 4318 . . Guns 23102 | 79 282 460 3046 . 834 531 1507 1135 4937 682 1001 623 2332 2471 530 2652 . . Cannons 3790 | . 265 . 934 399 . 243 521 . 10 . 20 . 15 131 1252 . . . Explosions 6305 | . 827 231 433 803 552 . . . 379 . 717 . 455 . 491 1417 . . Melee 1276 | . . . . . 367 . . 105 . . 221 . 264 70 . 249 . . Ramming 9 | . . . . . . . . . . . 9 . . . . . . . Kinetic 23404 | 79 298 . 1251 399 834 774 2028 1135 4937 682 1001 623 2332 2602 1777 2652 . . Thermal 2483 | . 249 79 1918 37 . . . . . . . . . . . 200 . . Explosive 3667 | . 775 152 205 766 552 . . . . . . . . . . 1217 . . Electromagnetic 3643 | . 52 460 1039 . . . . . 389 . 737 . 470 . 496 . . . Impact 1276 | . . . . . 367 . . 105 . . 221 . 264 70 . 249 . . Slashing . | . . . . . . . . . . . . . . . . . . . Piercing . | . . . . . . . . . . . . . . . . . . . Highest Corruption 21 | . . . . . . . . 1 14 14 21 . 8 8 11 6 18 18 Average Corruption 8 | . . . . . . . . 1 7 14 17 . 4 6 9 3 10 18 Corruption Purged 10 | . . . . . . . . . . . . . . 5 . 5 . . Corruption Blocked . | . . . . . . . . . . . . . . . . . . . Effects 324 | . . . . . . . . 6 71 28 50 . 43 54 48 5 9 10 Message Errors 78 | . . . . . . . . 2 14 5 11 . 12 15 13 3 . 3 Matter Fused 53 | . . . . . . . . 1 13 4 5 . 9 8 11 1 1 . Heat Flow Errors 52 | . . . . . . . . . 11 4 5 . 8 12 7 1 2 2 Energy Discharges 44 | . . . . . . . . 1 12 7 6 . 4 7 4 . 2 1 Parts Rejected 3 | . . . . . . . . . 1 . . . . 1 . . . 1 Parts Fused 1 | . . . . . . . . 1 . . . . . . . . . . Data Loss (minor) 41 | . . . . . . . . 1 9 1 10 . 5 4 7 . 2 2 Data Loss (major) 19 | . . . . . . . . . 4 4 4 . 1 4 . . 1 1 Misfires 10 | . . . . . . . . . 1 1 6 . . 1 1 . . . Alerts 6 | . . . . . . . . . . 2 1 . . 1 2 . . . Misdirections 3 | . . . . . . . . . . . 1 . . . 1 . 1 . Weapon Failures 14 | . . . . . . . . . 6 . 1 . 4 1 2 . . . Overload Shots . | . . . . . . . . . . . . . . . . . . . Overflow Damage 456 | . 9 . 36 32 124 . 9 . . . 57 . 18 30 . 141 . . Projectiles 31 | . . . . 22 . . 9 . . . . . . . . . . . Explosions 170 | . 9 . 36 10 14 . . . . . . . . . . 101 . . Melee 255 | . . . . . 110 . . . . . 57 . 18 30 . 40 . . Knockbacks 52 | . . . 6 1 3 3 1 . . . . . 2 7 27 2 . . Impact 7 | . . . . . 3 . . . . . . . 1 1 . 2 . . Kinetic 44 | . . . 6 1 . 3 1 . . . . . . 6 27 . . . Secondary 1 | . . . . . . . . . . . . . 1 . . . . . Self-Inflicted Damage 365 | . 34 14 131 20 . . . . 70 . . . . 65 . 31 . . Shots 12 | . 2 1 3 1 . . . . 1 . . . . 2 . 2 . . Rammed 1 | . . . . . . . . . . . 1 . . . . . . . Targets Rammed 1 | . . . . . . . . . . . 1 . . . . . . . Kicked . | . . . . . . . . . . . . . . . . . . . Crushed . | . . . . . . . . . . . . . . . . . . . Highest Temperature 454 | . 195 18 392 445 454 90 10 330 447 231 202 218 244 149 327 318 189 75 Average Temperature 102 | . 42 7 113 200 241 32 2 93 89 70 58 107 80 66 129 91 81 54 Received Heat Transfer 5733 | . 261 51 452 18 . 18 81 72 1150 16 744 9 189 138 387 2003 . 144 Effects 20 | . . . 6 . 3 . . 3 1 . . . . . 5 2 . . Shutdowns 2 | . . . 1 . 1 . . . . . . . . . . . . . Energy Bleed 8 | . . . 4 . 1 . . . . . . . . . 1 2 . . Interference 8 | . . . 1 . . . . 3 . . . . . . 4 . . . Matter Decay 1 | . . . . . 1 . . . . . . . . . . . . . Short Circuit 1 | . . . . . . . . . 1 . . . . . . . . . Siege Activations 3 | . . . . . . . . . 1 . 1 . 1 . . . . . Total Turns 35 | . . . . . . . . . 29 . 4 . 2 . . . . . Longest Duration 29 | . . . . . . . . . 29 . 4 . 2 . . . . . Robots Corrupted 9 | . . 1 1 . 1 . . . . . 1 . 1 1 3 . . . Combat Hostiles 6 | . . 1 1 . . . . . . . 1 . . . 3 . . . Parts Fried 23 | . . 1 9 . 1 . . . 3 . 3 . 1 1 4 . . . Impact Corruptions 27 | . . . . . 21 . . . . . 2 . 1 2 . 1 . . Robots Melted 1 | . . . 1 . . . . . . . . . . . . . . . Combat Hostiles 1 | . . . 1 . . . . . . . . . . . . . . . Parts Melted 13 | . 1 . 10 . . . . . . . . . . . . 2 . . Heat Transferred 5469 | . 444 50 4725 100 . . . . . . . . . . . 150 . . Parts Sabotaged 4 | . . . . . . . . . . . . . . 4 . . . . Parts Stolen . | . . . . . . . . . . . . . . . . . . . Parts Stripped . | . . . . . . . . . . . . . . . . . . . Power Chain Reactions 8 | . . 2 4 . . . . . . . 1 . . 1 . . . . Latent Energy Used 1162 | . . . . . . . . . 294 . 430 . 238 . 200 . . . LE Corruption 20 | . . . . . . . . . 5 . 7 . 5 . 3 . . . Alert | -11 -10 -10 -9 -9 -9 -8 -8 -7 -7 -7 -7 -6 -6 -6 -6 -5 -5 -5 ------- Run | Yrd Mat Min Mat Min Exi Min Mat Fac Gar Fac Gar Fac Gar Fac Gar Fac Was Fac Peak Influence 2024 | 10 255 389 1061 570 . 270 330 191 1819 1136 1295 694 2024 1171 1547 1353 473 411 Initial 1062 | . 6 99 46 321 . . . 88 133 954 551 679 290 1062 623 812 473 331 Average 619 | 3 87 226 639 415 . 45 163 83 1010 887 996 434 1205 856 1129 864 473 338 Maximum Alert Level 5 | . 1 1 3 2 . 1 1 . 5 4 4 2 5 4 4 4 2 2 Low Security (%) 24 | 100 74 35 2 . . 94 62 100 1 . . . . . . . . . Level 1 15 | . 25 64 27 15 . 5 37 . 9 . . 52 5 . . . . 97 Level 2 15 | . . . 22 84 . . . . 11 24 11 47 14 23 10 9 100 2 Level 3 28 | . . . 46 . . . . . 33 72 50 . 18 62 32 85 . . Level 4 12 | . . . . . . . . . 29 3 37 . 35 13 56 5 . . Level 5 3 | . . . . . . . . . 14 . . . 25 . . . . . High Security . | . . . . . . . . . . . . . . . . . . . Max Security . | . . . . . . . . . . . . . . . . . . . Sterilizations 1 | . . . 1 . . . . . . . . . . . . . . . Squads Dispatched 54 | . 2 . 9 . . . 9 8 . 2 . 4 . 9 . 9 . 2 Investigation 11 | . 2 . 4 . . . . 1 . 1 . 1 . . . . . 2 Extermination 5 | . . . . . . . . 2 . . . . . 2 . 1 . . Reinforcement 15 | . . . 3 . . . 3 3 . 1 . . . 2 . 3 . . Assault 5 | . . . 2 . . . . . . . . . . 1 . 2 . . Garrison 18 | . . . . . . . 6 2 . . . 3 . 4 . 3 . . Intercept . | . . . . . . . . . . . . . . . . . . . Searches Triggered . | . . . . . . . . . . . . . . . . . . . Construction Impeded 2 | . . . 2 . . . . . . . . . . . . . . . Haulers Reinforced 3 | . . . . . . . . 1 . 1 . . . . . 1 . . Active Scanning Responses . | . . . . . . . . . . . . . . . . . . . Cargo Convoy Interrupts . | . . . . . . . . . . . . . . . . . . . Stealth | -11 -10 -10 -9 -9 -9 -8 -8 -7 -7 -7 -7 -6 -6 -6 -6 -5 -5 -5 --------- Run | Yrd Mat Min Mat Min Exi Min Mat Fac Gar Fac Gar Fac Gar Fac Gar Fac Was Fac Distress Signals 9 | . . . 4 2 . . 1 1 . . . . . . . 1 . . Communications Jammed 23 | . . . . . . . . . . . . . . 19 . 4 . . Distress Signals 18 | . . . . . . . . . . . . . . 15 . 3 . . Times Spotted 415 | . 21 13 68 16 8 10 18 9 42 10 23 12 48 23 37 47 6 4 Peak Tracking Total 11 | . 5 3 6 2 9 3 4 2 6 3 6 2 11 5 9 7 6 7 Tactical Retreats 23 | . 1 1 2 . 1 . 1 . 4 . . . 1 3 5 3 . 1 Traps | -11 -10 -10 -9 -9 -9 -8 -8 -7 -7 -7 -7 -6 -6 -6 -6 -5 -5 -5 ------- Run | Yrd Mat Min Mat Min Exi Min Mat Fac Gar Fac Gar Fac Gar Fac Gar Fac Was Fac Traps Triggered 16 | . . . 2 . . . . . 4 . . . . . 8 1 . 1 Indirectly . | . . . . . . . . . . . . . . . . . . . Trap Hack Attempts . | . . . . . . . . . . . . . . . . . . . Triggered . | . . . . . . . . . . . . . . . . . . . Disarmed . | . . . . . . . . . . . . . . . . . . . Reprogrammed . | . . . . . . . . . . . . . . . . . . . Reused . | . . . . . . . . . . . . . . . . . . . Traps Extracted . | . . . . . . . . . . . . . . . . . . . Installed . | . . . . . . . . . . . . . . . . . . . Triggered . | . . . . . . . . . . . . . . . . . . . Objects Rigged 3 | . 3 . . . . . . . . . . . . . . . . . Exploded 2 | . 2 . . . . . . . . . . . . . . . . . Machines | -11 -10 -10 -9 -9 -9 -8 -8 -7 -7 -7 -7 -6 -6 -6 -6 -5 -5 -5 ---------- Run | Yrd Mat Min Mat Min Exi Min Mat Fac Gar Fac Gar Fac Gar Fac Gar Fac Was Fac Machines Disabled 74 | . 4 1 4 1 5 1 4 1 6 2 4 5 7 10 4 15 . . Max in Single Turn 7 | . 2 1 1 1 2 1 1 1 1 1 1 . 1 2 1 7 . . Garrison Relay 15 | . . . . . . . . . 5 . 4 . 4 . 2 . . . Machines Repaired . | . . . . . . . . . . . . . . . . . . . Machines Dismantled . | . . . . . . . . . . . . . . . . . . . Machines Sabotaged . | . . . . . . . . . . . . . . . . . . . Overloaded Fab Kills . | . . . . . . . . . . . . . . . . . . . Hacking | -11 -10 -10 -9 -9 -9 -8 -8 -7 -7 -7 -7 -6 -6 -6 -6 -5 -5 -5 --------- Run | Yrd Mat Min Mat Min Exi Min Mat Fac Gar Fac Gar Fac Gar Fac Gar Fac Was Fac Machines Accessed 69 | . 8 . 12 . 1 1 8 10 3 7 1 3 3 4 3 3 . 2 Terminals 49 | . 6 . 9 . . 1 7 7 3 4 1 2 3 2 3 . . 1 Fabricators 4 | . . . . . . . . 1 . 1 . . . . . 1 . 1 Repair Stations 3 | . . . 1 . . . 1 . . . . . . . . 1 . . Recycling Units 6 | . 2 . 2 . . . . 1 . . . . . 1 . . . . Scanalyzers 1 | . . . . . . . . . . 1 . . . . . . . . Garrison Access 5 | . . . . . . . . 1 . 1 . 1 . 1 . 1 . . Total Hacks 188 | . 33 . 42 . 1 6 25 19 4 14 3 7 6 10 7 7 . 4 Successful 90 | . 21 . 18 . 1 2 13 8 2 6 1 3 1 7 2 4 . 1 Failed 97 | . 11 . 24 . . 4 12 11 2 8 2 4 5 3 5 3 . 3 Catastrophic 18 | . 1 . 1 . . . 3 2 2 4 1 1 1 . 1 . . 1 Database Lockouts 1 | . 1 . . . . . . . . . . . . . . . . . Manual 75 | . 21 . 22 . 3 6 14 5 . 3 . 1 . . . . . . Terminals 153 | . 31 . 38 . . 6 22 16 4 8 3 6 6 5 7 . . 1 Fabricators 8 | . . . . . . . . 1 . 3 . . . . . 1 . 3 Repair Stations 10 | . . . 2 . . . 3 . . . . . . . . 5 . . Recycling Units 9 | . 2 . 2 . . . . 1 . . . . . 4 . . . . Scanalyzers 2 | . . . . . . . . . . 2 . . . . . . . . Garrison Access 5 | . . . . . . . . 1 . 1 . 1 . 1 . 1 . . Terminal Hacks 39 | . 8 . 6 . 1 2 5 3 2 3 1 2 1 2 2 . . 1 Record 6 | . 3 . . . . . . . . 1 . . . 2 . . . . Robot Analysis 6 | . 1 . 2 . . 2 1 . . . . . . . . . . . Prototype ID Bank 3 | . 2 . . . . . 1 . . . . . . . . . . . Open Door 1 | . . . . . . . . . 1 . . . . . . . . . Open DSF 1 | . . . . . . . . . . . . . . . . . . 1 Branch Access Points 1 | . . . 1 . . . . . . . . . . . . . . . Emergency Access Points 2 | . . . . . . . . . 1 . . . 1 . . . . . Unreport Threat 5 | . 1 . 2 . . . . . . . . 2 . . . . . . Locate Traps 4 | . . . . . . . 2 1 . 1 . . . . . . . . Dispatch Records 1 | . 1 . . . . . . . . . . . . . . . . . Transport Status 1 | . . . . . . . . 1 . . . . . . . . . . Hauler Manifests 1 | . . . . . . . . 1 . . . . . . . . . . Zone Layout 3 | . . . 1 . . . 1 . . 1 . . . . . . . . Patrol Navigation 2 | . . . . . . . . . . . . . . . 2 . . . Security Stations 1 | . . . . . . . . . . . 1 . . . . . . . Derelict Proto ID Bank 1 | . . . . . 1 . . . . . . . . . . . . . Fabricator Hacks 3 | . . . . . . . . 1 . 1 . . . . . 1 . . Network Status 3 | . . . . . . . . 1 . 1 . . . . . 1 . . Repair Station Hacks 5 | . . . 2 . . . 1 . . . . . . . . 2 . . Scan Component 3 | . . . 1 . . . 1 . . . . . . . . 1 . . Repair 1 | . . . 1 . . . . . . . . . . . . . . . Refit 1 | . . . . . . . . . . . . . . . . 1 . . Recycling Unit Hacks 4 | . . . . . . . . . . . . . . 4 . . . . Process 2 | . . . . . . . . . . . . . . 2 . . . . Retrieve Matter 2 | . . . . . . . . . . . . . . 2 . . . . Scanalyzer . | . . . . . . . . . . . . . . . . . . . Garrison Access Hacks 5 | . . . . . . . . 1 . 1 . 1 . 1 . 1 . . Unlock Access 5 | . . . . . . . . 1 . 1 . 1 . 1 . 1 . . Unauthorized Hacks 34 | . 13 . 10 . . . 7 3 . 1 . . . . . . . . Terminals 29 | . 11 . 8 . . . 7 2 . 1 . . . . . . . . Botnet 9 | . 4 . 3 . . . 2 . . . . . . . . . . . Detonate 1 | . 1 . . . . . . . . . . . . . . . . . Skim 19 | . 6 . 5 . . . 5 2 . 1 . . . . . . . . Fabricators . | . . . . . . . . . . . . . . . . . . . Repair Stations . | . . . . . . . . . . . . . . . . . . . Recycling Units 5 | . 2 . 2 . . . . 1 . . . . . . . . . . Tunnel 5 | . 2 . 2 . . . . 1 . . . . . . . . . . Scanalyzers . | . . . . . . . . . . . . . . . . . . . Garrison Access . | . . . . . . . . . . . . . . . . . . . Data Cores Recovered 1 | . 1 . . . . . . . . . . . . . . . . . Used . | . . . . . . . . . . . . . . . . . . . Hacking Detections 57 | . 6 . 10 . . 1 8 9 1 6 1 3 3 2 3 3 . 1 Full Trace Events 11 | . . . 2 . . . 1 . 1 1 1 1 1 . 2 . . 1 Feedback Events 2 | . . . . . . . . . 1 . . . 1 . . . . . Corruption 2 | . . . . . . . . . 1 . . . 1 . . . . . Feedback Blocked . | . . . . . . . . . . . . . . . . . . . Robot Schematics Acquired . | . . . . . . . . . . . . . . . . . . . Robots Built . | . . . . . . . . . . . . . . . . . . . Authchips . | . . . . . . . . . . . . . . . . . . . Time . | . . . . . . . . . . . . . . . . . . . Total Robot Build Rating . | . . . . . . . . . . . . . . . . . . . Part Schematics Acquired . | . . . . . . . . . . . . . . . . . . . Parts Built . | . . . . . . . . . . . . . . . . . . . Authchips . | . . . . . . . . . . . . . . . . . . . Time . | . . . . . . . . . . . . . . . . . . . Total Part Build Rating . | . . . . . . . . . . . . . . . . . . . Parts Repaired 1 | . . . 1 . . . . . . . . . . . . . . . Time 19 | . . . 19 . . . . . . . . . . . . . . . Parts Recycled . | . . . . . . . . . . . . . . . . . . . Recycled Matter 24 | . . . . . . . . . . . . . . 24 . . . . Retrieved Matter 24 | . . . . . . . . . . . . . . 24 . . . . Retrieved Components . | . . . . . . . . . . . . . . . . . . . Parts Scanalyzed . | . . . . . . . . . . . . . . . . . . . Part Schematics Acquired . | . . . . . . . . . . . . . . . . . . . Parts Damaged . | . . . . . . . . . . . . . . . . . . . Bothacking | -11 -10 -10 -9 -9 -9 -8 -8 -7 -7 -7 -7 -6 -6 -6 -6 -5 -5 -5 ------------ Run | Yrd Mat Min Mat Min Exi Min Mat Fac Gar Fac Gar Fac Gar Fac Gar Fac Was Fac Used RIF Installer 4 | . . . . . . . . . 1 . 1 . 1 . 1 . . . Command Fork 1 | . . . . . . . . . . . . . . . 1 . . . Robot Detection 1 | . . . . . . . . . . . 1 . . . . . . . Program Shield 1 | . . . . . . . . . . . . . 1 . . . . . Robots Hacked 37 | . . . . . 4 . . 1 . 1 3 6 9 5 2 6 . . Non-combat 15 | . . . . . 3 . . . . 1 . 5 . 4 . 2 . . Combat 22 | . . . . . 1 . . 1 . . 3 1 9 1 2 4 . . Robot Hacks Applied 49 | . . . . . 4 . . 1 . 3 3 10 10 9 2 7 . . parse_system 9 | . . . . . 4 . . 1 . . . 1 1 1 . 1 . . generate_echo 1 | . . . . . . . . . . . . 1 . . . . . . start_evac 1 | . . . . . . . . . . . . . . 1 . . . . find_chute 1 | . . . . . . . . . . . . 1 . . . . . . hold_bot 2 | . . . . . . . . . . . . . . 2 . . . . purge_threat 5 | . . . . . . . . . . 2 . 1 . 2 . . . . go_dormant 1 | . . . . . . . . . . . . . 1 . . . . . overwrite_iff 1 | . . . . . . . . . . . . . 1 . . . . . streamctrl_high 2 | . . . . . . . . . . . . . 2 . . . . . formatsys_low 9 | . . . . . . . . . . 1 . 4 . 2 . 2 . . formatsys_high 17 | . . . . . . . . . . . 3 2 5 1 2 4 . . Relay Couplers Released 56 | . . . . . . . . . 21 . 14 . 14 . 7 . . . Machine Destruction 56 | . . . . . . . . . 21 . 14 . 14 . 7 . . . Attached 21 | . . . . . . . . . . 1 3 3 6 3 1 4 . . Fabnet Peak Effective % . | . . . . . . . . . . . . . . . . . . . Robots Rewired 6 | . . . . . . . . . 2 . 4 . . . . . . . Allies Hacked 1 | . . . . . . . . . . . . 1 . . . . . . Hacks Repelled . | . . . . . . . . . . . . . . . . . . . Allies | -11 -10 -10 -9 -9 -9 -8 -8 -7 -7 -7 -7 -6 -6 -6 -6 -5 -5 -5 -------- Run | Yrd Mat Min Mat Min Exi Min Mat Fac Gar Fac Gar Fac Gar Fac Gar Fac Was Fac Total Allies 35 | . . . . 1 . . . . 2 1 7 5 8 3 2 6 . . Largest Group 9 | . . . . 1 . . . . 2 1 5 8 9 6 2 3 . . Highest-Rated Group 256 | . . . . 31 . . . . 51 26 188 228 256 148 64 58 . . Highest-Rated Ally 43 | . . . . 31 . . . . 31 26 43 43 43 41 32 32 . . Total Orders 24 | . . . . . . . . . 2 2 1 6 4 8 . 1 . . STAY 8 | . . . . . . . . . 1 1 1 1 1 3 . . . . FOLLOW 9 | . . . . . . . . . 1 1 . 3 2 2 . . . . GUARD 1 | . . . . . . . . . . . . 1 . . . . . . AID 3 | . . . . . . . . . . . . 1 1 . . 1 . . EXPLORE 2 | . . . . . . . . . . . . . . 2 . . . . RETURN 1 | . . . . . . . . . . . . . . 1 . . . . Ally Attacks 217 | . . . . 6 . . . . 14 . 13 51 105 7 8 13 . . Total Damage 6069 | . . . . 62 . . . . 251 . 486 1213 3193 323 293 248 . . Kills 37 | . . . . 2 . . . . 2 . 3 8 16 1 3 2 . . Allies Corrupted . | . . . . . . . . . . . . . . . . . . . Allies Melted . | . . . . . . . . . . . . . . . . . . . Intel | -11 -10 -10 -9 -9 -9 -8 -8 -7 -7 -7 -7 -6 -6 -6 -6 -5 -5 -5 ------- Run | Yrd Mat Min Mat Min Exi Min Mat Fac Gar Fac Gar Fac Gar Fac Gar Fac Was Fac Robot Analysis Total 5 | . 1 . 2 . . 1 1 . . . . . . . . . . . Derelict Logs Recovered 3 | . . 1 . 2 . . . . . . . . . . . . . . Drone Launches 4 | . . . . . . . . . . . . . . 4 . . . . Drone Recoveries 3 | . . . . . . . . . . . . . . 3 . . . . Exploration | -11 -10 -10 -9 -9 -9 -8 -8 -7 -7 -7 -7 -6 -6 -6 -6 -5 -5 -5 ------------- Run | Yrd Mat Min Mat Min Exi Min Mat Fac Gar Fac Gar Fac Gar Fac Gar Fac Was Fac Turns Passed 23566 | 170 1508 1071 2817 893 1493 1647 1407 1141 2133 797 1102 590 1596 1975 1335 1393 176 322 Spaces Moved 10702 | 92 788 695 1177 334 661 665 596 598 959 430 498 292 743 859 468 541 142 164 Core 71 | 12 . . . . . . . . . . . . . . . 59 . . Treads 8565 | 80 788 22 1122 334 659 665 408 485 959 430 498 292 743 859 124 94 . 3 Legs 437 | . . . . . 2 . . . . . . . . . . 132 142 161 Wheels 1629 | . . 673 55 . . . 188 113 . . . . . . 344 256 . . Hover . | . . . . . . . . . . . . . . . . . . . Flight . | . . . . . . . . . . . . . . . . . . . Fastest Speed 50 | 50 160 105 125 240 160 240 145 160 160 160 160 160 160 160 155 50 120 160 Average Speed 182 | 145 160 128 184 240 210 240 214 162 173 160 175 161 160 189 212 185 120 189 Slowest Speed 560 | 160 160 240 240 240 400 240 240 165 243 160 240 166 160 246 242 560 120 190 Overloaded Moves . | . . . . . . . . . . . . . . . . . . . Propulsion Burnouts . | . . . . . . . . . . . . . . . . . . . Robots Hopped . | . . . . . . . . . . . . . . . . . . . Cave-ins Triggered . | . . . . . . . . . . . . . . . . . . . Exploration Rate (%) 54 | 5 97 101 96 56 58 99 57 21 93 13 42 7 97 29 55 14 96 5 Regions Visited 18 Branch Regions 4 Pre-discovered Areas 6 | . 2 . 2 . . . 1 1 . . . . . . . . . . Known Exits Taken 8 | . . 1 1 . . 1 1 1 . 1 . 1 . 1 . . . . Unknown Exits Taken 4 | 1 1 . . 1 1 . . . . . . . . . . . . . Scrap Searched 4 | . . 1 . 1 . 2 . . . . . . . . . . . . Spaces Dug 61 | . 13 . 11 24 . . . 4 . 1 3 . 1 3 1 . . . Terrain Destroyed 602 | . 53 21 52 167 30 23 25 4 2 6 20 . 4 9 9 177 . . Melee 15 | . 1 . 1 . . . . 4 . 1 3 . 1 3 1 . . . Projectile 96 | . . . 1 12 12 23 25 . 1 5 8 . . . 3 6 . . AOE 490 | . 52 21 50 155 18 . . . 1 . 9 . 3 6 4 171 . . Terrain Rammed . | . . . . . . . . . . . . . . . . . . . Walls Destroyed . | . . . . . . . . . . . . . . . . . . . Machines Disabled . | . . . . . . . . . . . . . . . . . . . Actions | -11 -10 -10 -9 -9 -9 -8 -8 -7 -7 -7 -7 -6 -6 -6 -6 -5 -5 -5 --------- Run | Yrd Mat Min Mat Min Exi Min Mat Fac Gar Fac Gar Fac Gar Fac Gar Fac Was Fac Total 13608 | 113 957 815 1541 385 752 700 677 738 1301 539 677 391 1045 1134 682 835 147 179 Wait 1058 | 6 57 75 140 16 12 21 14 70 138 46 18 32 137 120 62 91 3 . Move 10687 | 91 787 694 1176 333 660 664 595 598 958 430 497 291 742 858 467 541 141 164 Hop . | . . . . . . . . . . . . . . . . . . . Pick Up 194 | 2 28 2 20 3 16 . 5 5 16 8 24 3 9 19 8 15 3 8 Fast Attach 151 | 7 2 4 19 . 4 2 9 6 9 10 9 1 8 15 12 34 . . Attach 128 | . 2 . 7 1 4 . 1 2 7 4 24 12 5 21 9 28 . 1 Detach 47 | . 1 . . . 2 . 2 . 3 2 9 6 . 3 2 17 . . Swap 167 | . 15 4 18 5 9 1 5 15 20 . 10 15 25 7 4 14 . . Drop 247 | . 19 6 40 2 19 3 16 13 12 18 18 3 11 22 10 29 . 6 Fire 779 | 7 44 30 119 25 19 9 30 23 122 20 49 28 75 65 57 57 . . Melee 107 | . 2 . 2 . 7 . . 6 12 1 18 . 33 4 13 9 . . Ram . | . . . . . . . . . . . . . . . . . . . Kick . | . . . . . . . . . . . . . . . . . . . Crush 1 | . . . . . . . . . . . 1 . . . . . . . Escape Stasis 42 | . . . . . . . . . 4 . . . . . 38 . . . Rewire . | . . . . . . . . . . . . . . . . . . . Trap . | . . . . . . . . . . . . . . . . . . . Miscellaneous . | . . . . . . . . . . . . . . . . . . . Route ------- -11/Scrapyard -10/Materials (discovered 5 exits: *Mat x3 / [*Min] / Sub) -10/Mines (discovered 3 exits: *Mat x2 / Sub) -9/Materials (discovered 6 exits: *Mat x3 / *Min / *Sto x2) -9/Mines (discovered 3 exits: *Mat x2 / *Exi) -9/Exiles -8/Mines (discovered 2 exits: *Mat x2) -8/Materials (discovered 3 exits: *Fac x3) -7/Factory (discovered 5 exits: *Fac x2 / *Low x2 / Gar) -7/Garrison (discovered 3 exits: *Fac x3) -7/Factory (discovered 2 exits: Fac / Gar) -7/Garrison -6/Factory -6/Garrison (discovered 3 exits: *Fac x3) -6/Factory -6/Garrison -5/Factory -5/Waste -5/Factory History --------- Turn | Location | Event 4 | -11/Scrapyard | Discovered new exit (range 15) 171 | -11/Scrapyard | Entered Materials 318 | -10/Materials | Build established: Mutant 525 | -10/Materials | Discovered new exit (range 16) 705 | -10/Materials | Discovered new exit (range 11) 843 | -10/Materials | Discovered new exit (range 5) 864 | -10/Materials | Central database locked down 1209 | -10/Materials | Learned location of 1 exit from Storage 1261 | -10/Materials | Learned Storage trap positions 1303 | -10/Materials | Learned location of 2 exits from Mines 1335 | -10/Materials | Identified exit to Subcaves 1335 | -10/Materials | Identified exit to Materials 1335 | -10/Materials | Learned location of 1 exit from Materials 1369 | -10/Materials | Learned 2 Mines zone layouts 1417 | -10/Materials | Learned Storage emergency access door positions 1679 | -10/Materials | Entered Mines 1721 | -10/Mines | Met a Derelict bent on vengeance 2202 | -10/Mines | Learned Materials stockpile data 2225 | -10/Mines | Core integrity fell below 50% 2750 | -10/Mines | Entered Materials 2750 | -9/Materials | Evolved 2 slots: Weapon x2 2751 | -9/Materials | Identified exit to Mines 2755 | -9/Materials | Discovered new exit (range 8) 2836 | -9/Materials | Discovered new exit (range 15) 3052 | -9/Materials | Build established: Gunner 3165 | -9/Materials | Discovered new exit (range 5) 3432 | -9/Materials | Discovered new exit (range 3) 3436 | -9/Materials | Build established: Scavenger-Gunner 3753 | -9/Materials | Destroyed 7 combat bots 3846 | -9/Materials | Build established: Gunner 4000 | -9/Materials | Identified exit to Storage 4119 | -9/Materials | Repaired Imp. Heat Sink 4147 | -9/Materials | Discovered new exit (range 5) 4350 | -9/Materials | First assault squad dispatched 5197 | -9/Materials | Sterilization system engaged 5197 | -9/Materials | Non-combat units ordered to evacuate 5272 | -9/Materials | Build established: Tank 5297 | -9/Materials | Combat units ordered to evacuate 5497 | -9/Materials | Ambient heat levels rising (+10) 5567 | -9/Materials | Entered Mines 5671 | -9/Mines | Found a damaged Exp. Sensor Array with a note attached 5672 | -9/Mines | Assembled infested the area 5677 | -9/Mines | Assisted by a Guerilla fighting off Assembled 5678 | -9/Mines | Found Prototype Device 5719 | -9/Mines | Identified Exp. Sensor Array 5843 | -9/Mines | Discovered new exit (range 12) 5894 | -9/Mines | Received a Mining Laser from a helpful Derelict 6025 | -9/Mines | Build established: Skirmisher 6185 | -9/Mines | Learned Materials stockpile data 6252 | -9/Mines | Deemed a non-threat by the Exiles lab entrance 6252 | -9/Mines | Discovered new exit (range 5) 6290 | -9/Mines | Received a Rocket Launcher from a helpful Derelict 6313 | -9/Mines | Identified exit to Materials 6345 | -9/Mines | Build established: Tank 6460 | -9/Mines | Entered Exiles 6523 | -9/Exiles | Met 8R-AWN 6564 | -9/Exiles | Met EX-HEX 6762 | -9/Exiles | Met EX-BIN 6810 | -9/Exiles | Met EX-DEC 6888 | -9/Exiles | Aligned with FarCom system 6890 | -9/Exiles | Given EX-Vault access code 6926 | -9/Exiles | Opened EX-Vault 6944 | -9/Exiles | Found XL Autogun Array 6951 | -9/Exiles | Found Latent Energy Streamer 7012 | -9/Exiles | Warned to stay clear of 0b10 Research branches 7217 | -9/Exiles | Found AWS/Gauss 7338 | -9/Exiles | Attacked by the Exiles 7354 | -9/Exiles | Destroyed EX-HEX 7369 | -9/Exiles | Destroyed 7 combat bots 7386 | -9/Exiles | Destroyed 8R-AWN 7426 | -9/Exiles | Found 8R-AWN's Armor/EX 7430 | -9/Exiles | Found Exp. Targeting Computer 7433 | -9/Exiles | Found 8R-AWN's Boregun 7919 | -9/Exiles | Discovered new exit (range 15) 7953 | -9/Exiles | Stole three prototypes: AWS/Gauss, Latent Energy Streamer, XL Autogun Array 7953 | -9/Exiles | Entered Mines 8103 | -8/Mines | Discovered exit to Materials (range 14) 8276 | -8/Mines | Discovered exit to Materials (range 14) 9600 | -8/Mines | Entered Materials 9600 | -8/Materials | Evolved 2 slots: Propulsion x1, Utility x1 9692 | -8/Materials | Garrison activated, responded to threat 10205 | -8/Materials | Met 7R-MNS 10253 | -8/Materials | Garrison activated, responded to threat 10624 | -8/Materials | Discovered new exit (range 15) 10643 | -8/Materials | Learned Factory trap positions 10692 | -8/Materials | Learned Factory terminal intel 10729 | -8/Materials | Learned location of 2 exits from Factory 10754 | -8/Materials | Learned location of 1 exit from Recycling 10770 | -8/Materials | Learned Storage emergency access door positions 10770 | -8/Materials | Build established: Scavenger-Gunner 10777 | -8/Materials | Identified exit to Factory 10785 | -8/Materials | Learned Storage stockpile data 10824 | -8/Materials | Learned location of Lower Caves (-7) 11007 | -8/Materials | Entered Factory 11007 | -7/Factory | Evolved 2 slots: Propulsion x1, Utility x1 11008 | -7/Factory | Caught up to 7R-MNS 11008 | -7/Factory | Identified exit to Lower Caves 11009 | -7/Factory | Identified exit to Factory 11010 | -7/Factory | Loaded intel: 92 trap records 11011 | -7/Factory | Loaded intel: 25 terminal locations 11111 | -7/Factory | Build established: Gunner 11475 | -7/Factory | Build established: Scavenger-Gunner 11662 | -7/Factory | Discovered exit to Factory (range 10) 11995 | -7/Factory | Garrison activated, responded to threat 12118 | -7/Factory | Garrison activated, responded to threat 12148 | -7/Factory | Identified exit to Garrison 12148 | -7/Factory | Entered Garrison 12186 | -7/Garrison | Triggered checkpoint 12300 | -7/Garrison | Garrison Relay disabled 12373 | -7/Garrison | Triggered checkpoint 12374 | -7/Garrison | Triggered checkpoint 12491 | -7/Garrison | Discovered new exit (range 13) 12523 | -7/Garrison | Garrison Relay disabled 12536 | -7/Garrison | Triggered checkpoint 12609 | -7/Garrison | Spotted B-75 Beast 12609 | -7/Garrison | Spotted B-75 Beast 12621 | -7/Garrison | Destroyed B-75 Beast 12664 | -7/Garrison | Destroyed B-75 Beast 12960 | -7/Garrison | Triggered checkpoint 13058 | -7/Garrison | Garrison Relay disabled 13273 | -7/Garrison | Build established: Scavenger-Tank 13341 | -7/Garrison | System corruption reached 10% 13509 | -7/Garrison | Installed Relay Interface Framework 13542 | -7/Garrison | Discovered new exit (range 10) 13564 | -7/Garrison | Triggered checkpoint 13601 | -7/Garrison | Garrison Relay disabled 13763 | -7/Garrison | AWS/Gauss suddenly broke down 13950 | -7/Garrison | Triggered checkpoint 14077 | -7/Garrison | Discovered new exit (range 5) 14116 | -7/Garrison | Triggered checkpoint 14234 | -7/Garrison | Garrison Relay disabled 14281 | -7/Garrison | Entered Factory 14498 | -7/Factory | Build established: Tank 14717 | -7/Factory | Discovered exit to Factory (range 9) 15078 | -7/Factory | Identified exit to Garrison 15078 | -7/Factory | Entered Garrison 15078 | -7/Garrison | Accompanied by 1 ally 15089 | -7/Garrison | Learned Factory security intel 15274 | -7/Garrison | Garrison Relay disabled 15322 | -7/Garrison | Triggered checkpoint 15345 | -7/Garrison | Garrison Relay disabled 15426 | -7/Garrison | Triggered checkpoint 15488 | -7/Garrison | Triggered checkpoint 15515 | -7/Garrison | Triggered checkpoint 15563 | -7/Garrison | Core integrity fell below 50% 15676 | -7/Garrison | Discovered exit to Factory (range 11) 15720 | -7/Garrison | Expanded RIF knowledge: Robot Detection 15760 | -7/Garrison | Triggered checkpoint 15788 | -7/Garrison | Triggered checkpoint 15822 | -7/Garrison | Heavy support dispatched to Factory 15858 | -7/Garrison | Build established: Bothacker-Mutant 15858 | -7/Garrison | Lost 3 parts (1p1n1u) 15859 | -7/Garrison | Garrison Relay disabled 15943 | -7/Garrison | Heavy support dispatched to Factory 16070 | -7/Garrison | Triggered checkpoint 16101 | -7/Garrison | Garrison Relay disabled 16180 | -7/Garrison | Entered Factory 16180 | -6/Factory | Accompanied by 5 allies 16180 | -6/Factory | Evolved 2 slots: Utility x1, Weapon x1 16536 | -6/Factory | Garrison activated, responded to threat 16664 | -6/Factory | P-60 Hacker assimilated allied Smith 5a 16688 | -6/Factory | Identified exit to Garrison 16690 | -6/Factory | Build established: Commander-Tank 16770 | -6/Factory | Entered Garrison 16770 | -6/Garrison | Accompanied by 8 allies 16810 | -6/Garrison | Triggered checkpoint 16930 | -6/Garrison | Garrison Relay disabled 17009 | -6/Garrison | Spotted B-75 Beast 17015 | -6/Garrison | Triggered checkpoint 17022 | -6/Garrison | Allies destroyed B-75 Beast 17056 | -6/Garrison | Triggered checkpoint 17081 | -6/Garrison | Triggered checkpoint 17222 | -6/Garrison | Discovered new exit (range 5) 17244 | -6/Garrison | Triggered checkpoint 17270 | -6/Garrison | Garrison Relay disabled 17407 | -6/Garrison | Destroyed 8 combat bots 17448 | -6/Garrison | Discovered new exit (range 10) 17473 | -6/Garrison | Expanded RIF knowledge: Program Shield 17579 | -6/Garrison | Garrison Relay disabled 17669 | -6/Garrison | Triggered checkpoint 17764 | -6/Garrison | Discovered new exit (range 14) 17822 | -6/Garrison | Triggered checkpoint 17852 | -6/Garrison | Lost 3 allies 17959 | -6/Garrison | Garrison Relay disabled 18366 | -6/Garrison | Entered Factory 18366 | -6/Factory | Accompanied by 4 allies 18716 | -6/Factory | First assault squad dispatched 18917 | -6/Factory | Build established: Scavenger-Gunner 19630 | -6/Factory | Garrison activated, responded to threat 20049 | -6/Factory | Garrison activated, responded to threat 20209 | -6/Factory | Lost 4 parts (1n3w) 20288 | -6/Factory | Identified exit to Garrison 20341 | -6/Factory | Entered Garrison 20417 | -6/Garrison | Triggered checkpoint 20573 | -6/Garrison | Garrison Relay disabled 20727 | -6/Garrison | Triggered checkpoint 20728 | -6/Garrison | System corruption reached 10% 20774 | -6/Garrison | Lost 6 parts (3n1u2w) 20880 | -6/Garrison | Lost 3 parts (1p2n) 21031 | -6/Garrison | Triggered checkpoint 21037 | -6/Garrison | Triggered checkpoint 21042 | -6/Garrison | Core integrity fell below 50% 21217 | -6/Garrison | Expanded RIF knowledge: Command Fork 21332 | -6/Garrison | Discovered new exit (range 11) 21413 | -6/Garrison | Triggered checkpoint 21438 | -6/Garrison | Garrison Relay disabled 21676 | -6/Garrison | Entered Factory 21676 | -5/Factory | Accompanied by 1 ally 21676 | -5/Factory | Evolved 2 slots: Power x1, Utility x1 21750 | -5/Factory | Build established: Bothacker-Gunner 22176 | -5/Factory | Garrison activated, responded to threat 22358 | -5/Factory | Lost 5 allies 22469 | -5/Factory | Identified exit to Garrison 22576 | -5/Factory | First assault squad dispatched 22644 | -5/Factory | AWS/Gauss suddenly broke down 22727 | -5/Factory | Core integrity fell below 50% 22780 | -5/Factory | Core integrity fell below 20% 22831 | -5/Factory | Lost 34 parts (4p11n11u8w) 22918 | -5/Factory | Build established: Scavenger-Mutant 23069 | -5/Factory | Sucked down chute 23069 | -5/Factory | Entered Waste 23082 | -5/Waste | Found Prototype Device 23084 | -5/Waste | EMP discharged 23090 | -5/Waste | Spotted C-40 Crusher 23095 | -5/Waste | Spotted C-40 Crusher 23120 | -5/Waste | Spotted C-40 Crusher 23121 | -5/Waste | Spotted C-40 Crusher 23130 | -5/Waste | Spotted C-40 Crusher 23177 | -5/Waste | Spotted C-40 Crusher 23184 | -5/Waste | EMP discharged 23184 | -5/Waste | System corruption reached 10% 23231 | -5/Waste | Discovered new exit (range 12) 23245 | -5/Waste | Entered Factory 23350 | -5/Factory | Identified exit to DSF 23567 | -5/Factory | Destroyed by G-50 Soldier with Heavy Laser Last Messages --------------- 23350_ EXIT=UNLOCKED: DSF 23376_ CC9LVQF54ACX%FODVD7BXW5Y%BGL 23392_ System corrupted: Component data lost. 23420_ Dropped Unknown Engine. 23421_ Acquired Enh. Optical Array. 23471_ Triggered Alarm Trap. 23471_ An alarm sounds. 23471_ ALERT: Alarm triggered, dispatching investigation squad. 23494_ AXTFJD:/O4Q4DW20CMHCPEN=FHJUN6%5S 23509_ System corrupted: Component data lost. 23525_ ALERT: All DSF locations entering lockdown mode. 23527_ System corrupted: Heat flow error (+112). 23540_ K-01 Serf collects debris. 23551_ Connecting with Fabricator... 23551_ ALERT: Suspicious activity at Fabricator F005. Dispatching Investigation squad. 23558_ Smartbomb Launcher destroyed. 23561_ System corrupted: Imp. Medium Armor Plating rejected. 23561_ Lgt. Angular Momentum Engine destroyed. 23562_ Carbon-fiber Leg destroyed. 23562_ Critical hit (Burn: +37). Map ----- +----------------------------------------------------+ | ?????????????????????????????????????????????????? | | ?????????????????????????????????????????????????? | | ????????????????????#######/#????????????????????? | | ???????????????????# #??????????????????? | | ???????????????????# #??????????????????? | | ???????????????????# #??????????????????? | | ???????????????????# #??????????????????? | | ???????????????????# #??????????????????? | | ???????????????????# #??????????????????? | | ???##??????????????# #??????????????????? | | #??????????????# ! ! #??????????????????? | | """ #??????????????# #??????????????????? | | """ #??????????????# #??????????????????? | | """ #??????????????# #### ? ?????????? | | """ #??????????????# / ??? ?????????? | | #??????????????# #????? ????????? | | #??????????????# #???? ????????? | | #??????????????# #??? #?????????? | | +####################+############ #?????????? | | #?????????? | | #?????????? | | #?????????? | | #?????????? | | #?????????? | | ############################g######+###??????????? | | ?????????????????# !@gg #??????????????????? | | ?????????????????# g"""#??????????????????? | | ?????????????????# """#??????????????????? | | ?????????????????# """ ""#??????????????????? | | ?????????????????# """ F""#??????????????????? | | ?????????????????# """ """#??????????????????? | | ?????????????????# #??????????????????? | | ?????????????????# """ """ #??????????????????? | | ?????????????????# """ """ #??????????????????? | | ?????????????????# """ """ #??????????????????? | | ?????????????????#? #??????????????????? | | ??????????????????? ] #??????????????????? | | ???????????????????############??????????????????? | | ?????????????????????????????????????????????????? | | ?????????????????????????????????????????????????? | | ?????????????????????????????????????????????????? | | ?????????????????????????????????????????????????? | | | | | | | | | | | | | | | | | +----------------------------------------------------+ Best States ------------- Heat Dissipation 71 Coolant Potential 65 Energy Generation 31 Energy Capacity 850 Matter Stores 300 Matter Capacity 300 Sight Range 16 Robot Scan Range 20 Terrain Scan Range 16 Terrain Scan Density 10 Jamming Range 12 Base Temperature (-) 200 EM Shielding 2 Armor Coverage 900 Resistance: KI 20 Resistance: TH 20 Resistance: EX 90 Weapon Shielding 66 Weapon Cycling 25 Evasion (%) 55 Targeting Accuracy 12 Target Analysis 5 Recoil Reduction 4 Kinecelleration 30 Relay Coupler Types 2 Relay Coupler Value 52 Item Schematics ----------------- None Robot Schematics ------------------ None Fabricated ------------ Nothing Alien Tech Used ----------------- None Achievements -------------- Gunslinger Challenges ------------ None Game ------ Seed PiercingSupersonicStatue Manual? 0 Play Time 03:46:39 Cumulative 62.6 hours Start 2024.09.05 @ 19:37:41 End 2024.09.07 @ 02:21:17 Sessions 5 Manual Loads 0 Difficulty Rogue Special Mode None Game No. 36 Rogue 36 Adventurer 0 Explorer 0 Win Type - Total 0 Types 0/0/0/0/0/0/0/0/0 Lore% 39 Gallery% 53 Achievement% 44 Wizard Run 0 Options --------- Layout 0 ASCII 0 Keyboard 0 Movement Mouse Keybinds 0 Fullscreen 1 Font 24/Smallcaps Map View 183x50 Zoom Use 0% Tactical HUD 1 Map Filters NONE Filters NONE Steam 0 RUN: 6bf51046-0908-4d08-a8c0-d19352283806